{"text_format":"1","workbook":"xlsx","n_sheets":3,"sheets":["Опросник","Обработка результатов","Печать"],"not_rendered":{"charts":0,"images":2,"macros":1,"external_links":0,"defined_names":2,"comments":0,"pivot_tables":0},"unopened":[],"bounds":{"document_bytes":16777216,"sheet_cells":100000,"rows_first":2000,"rows_last":500,"rows_between":2000,"halvings":0,"cell_chars":16384,"cell_head_chars":4096},"cells_cut":0,"cells_raw":0,"read":"whole","date_system":"1900"}

{"sheet":"Опросник","index":0,"n_rows":129,"n_cols":32,"rows_kept":129,"cut":false,"hidden":false,"merged":[[124,1,124,19],[125,1,125,19],[126,1,126,19],[127,1,127,19],[128,1,128,19],[99,1,99,19],[100,1,100,19],[101,1,101,19],[102,1,102,19],[103,1,103,19],[104,1,104,19],[105,1,105,19],[106,1,106,19],[107,1,107,19],[42,1,42,19],[43,1,43,19],[44,1,44,19],[45,1,45,19],[46,1,46,19],[47,1,47,19],[48,1,48,19],[49,1,49,19],[123,1,123,19],[67,1,67,19],[68,1,68,19],[69,1,69,19],[70,1,70,19],[71,1,71,19],[72,1,72,19],[76,1,76,19],[77,1,77,19],[78,1,78,19],[61,1,61,19],[62,1,62,19],[50,1,50,19],[51,1,51,19],[52,1,52,19],[53,1,53,19],[54,1,54,19],[55,1,55,19],[56,1,56,19],[57,1,57,19],[58,1,58,19],[74,1,74,19],[75,1,75,19],[73,1,73,19],[63,1,63,19],[64,1,64,19],[65,1,65,19],[66,1,66,19],[115,1,115,19],[79,1,79,19],[80,1,80,19],[81,1,81,19],[82,1,82,19],[83,1,83,19],[84,1,84,19],[85,1,85,19],[86,1,86,19],[87,1,87,19],[88,1,88,19],[116,1,116,19],[117,1,117,19],[118,1,118,19],[119,1,119,19],[120,1,120,19],[121,1,121,19],[122,1,122,19],[89,1,89,19],[90,1,90,19],[91,1,91,19],[92,1,92,19],[93,1,93,19],[94,1,94,19],[95,1,95,19],[96,1,96,19],[97,1,97,19],[98,1,98,19],[108,1,108,19],[109,1,109,19],[110,1,110,19],[111,1,111,19],[112,1,112,19],[113,1,113,19],[114,1,114,19],[1,0,1,2],[2,0,2,2],[1,3,1,10],[2,3,2,10],[1,14,1,15],[2,14,2,15],[4,0,7,20],[9,1,9,19],[10,1,10,19],[1,16,1,20],[2,16,2,20],[11,1,11,19],[12,1,12,19],[13,1,13,19],[14,1,14,19],[15,1,15,19],[16,1,16,19],[17,1,17,19],[18,1,18,19],[19,1,19,19],[20,1,20,19],[21,1,21,19],[22,1,22,19],[23,1,23,19],[24,1,24,19],[25,1,25,19],[26,1,26,19],[27,1,27,19],[60,1,60,19],[59,1,59,19],[28,1,28,19],[29,1,29,19],[30,1,30,19],[31,1,31,19],[32,1,32,19],[33,1,33,19],[34,1,34,19],[35,1,35,19],[36,1,36,19],[37,1,37,19],[38,1,38,19],[39,1,39,19],[40,1,40,19],[41,1,41,19]]}
[]
["Фамилия, имя",null,null,null,null,null,null,null,null,null,null,null,null,null,"Класс"]
["Возраст",null,null,null,null,null,null,null,null,null,null,null,null,null,"Пол"]
[]
["Дорогие ребята, предлагаем анкету с рядом вопросов. Здесь не может быть «правильных» или «неправильных» ответов. Каждый должен выбрать ответ наиболее подходящий для себя. Вопросы состоят из двух частей, разделенных словом «или». Читая вопросы, выбирай ту часть, которая подходит тебе больше. Поставь \"1\" в квадратике, если вы согласны с высказыванием в левой часи или \"2\", если согласны с высказыванием в правой части.",null,null,null,null,null,null,null,null,null,null,null,null,null,null,null,null,null,null,null,null,null,null,null,null,null,null,null,null,null,null,"Мальчик"]
[null,null,null,null,null,null,null,null,null,null,null,null,null,null,null,null,null,null,null,null,null,null,null,null,null,null,null,null,null,null,null,"Девочка"]
[]
[]
[]
[1,"Ты быстро справляешься со своими домашними заданиями или ты их выполняешь долго",null,null,null,null,null,null,null,null,null,null,null,null,null,null,null,null,null,null,null,null,null,null,1,1]
[2,"Если над тобой подшутили, ты немного сердишься или смеешься",null,null,null,null,null,null,null,null,null,null,null,null,null,null,null,null,null,null,null,null,null,null,2,2]
[3,"Ты думаешь, что почти все можешь сделать как надо или ты можешь справиться только с некоторыми заданиями",null,null,null,null,null,null,null,null,null,null,null,null,null,null,null,null,null,null,null,null,null,null,null,3]
[4,"Ты часто делаешь ошибки или ты их почти не делаешь"]
[5,"У тебя много друзей или не очень много"]
[6,"Другие мальчики умеют больше, чем ты или ты можешь столько же"]
[7,"Всегда ли ты хорошо запоминаешь имена людей или случается, что ты их забываешь"]
[8,"Ты много читаешь или большинство ребят читает больше"]
[9,"Когда учитель выбирает другого мальчика для работы, которую ты сам хотел сделать, тебе становится обидно или ты быстро об этом забываешь"]
[10,"Ты считаешь, что твои выдумки, предложения, идеи хорошие и правильные или ты не уверен в этом"]
[11,"Какое слово будет противоположным по значению к слову «СОБИРАТЬ» «РАЗДАВАТЬ» или «НАКАПЛИВАТЬ» или «БЕРЕЧЬ»"]
[12,"Ты обычно молчаливый или много говоришь"]
[13,"Если мама на тебя сердится, это иногда бывает ее ошибкой или у тебя ощущение, что ты сделал что-то неправильно"]
[14,"Тебе понравилось бы больше заниматься с книгами в библиотеке или быть капитаном дальнего плавания"]
[15,"Какая из следующих букв отличается от двух других? «С» или «Т» или «У»"]
[16,"Ты можешь вечером долго сидеть спокойно или начинаешь ерзать"]
[17,"Если ребята беседуют о каком-то месте, которое и ты хорошо знаешь, ты тоже начинаешь рассказывать о нем что-нибудь или ты ждешь, когда они кончат"]
[18,"Ты смог бы стать космонавтом или ты думаешь, что это слишком сложно"]
[19," Дан цифровой ряд; 2, 4, 8, ... Какая следующая цифра в этом ряду? 10 или 16 или 12"]
[20,"Твоя мама говорит, что ты слишком живой и беспокойный или ты тихий и спокойный"]
[21,"Ты охотнее слушаешь, как рассказывает кто-то из ребят или тебе больше нравится рассказывать самому"]
[22,"В свободное время ты лучше почитал бы книгу или поиграл в мяч"]
[23,"Дана группа слов: «ХОЛОДНЫЙ», «ГОРЯЧИЙ», «МОКРЫЙ», «ТЕПЛЫЙ». Одно слово не подходит по смыслу к остальным. Какое? «МОКРЫЙ» или «ХОЛОДНЫЙ» или «ТЕПЛЫЙ»."]
[24,"Ты всегда осторожен в своих движениях или бывает, когда ты бегаешь, то задеваешь за предметы"]
[25,"Ты тревожишься, что тебя могут наказать или тебя это никогда не волнует"]
[26," Тебе больше понравилось бы строить дома, когда ты вырастешь или быть летчиком"]
[27,"Когда КОЛЕ было столько же лет, сколько НАТАШЕ сейчас, АНЯ была старше его. Кто моложе всех? КОЛЯ или АНЯ или НАТАША"]
[28,"Учитель часто делает тебе замечания на уроках или он считает, что ты ведешь себя так, как надо"]
[29,"Когда твои друзья спорят о чем-то, ты или молчишь вмешиваешься в их спор"]
[30,"Ты можешь заниматься, когда другие в классе разговаривают, смеются или когда ты занимаешься, должна быть тишина"]
[31,"Ты слушаешь «Новости» по телевизору или ты идешь играть, когда они начинаются"]
[32,"Тебя обижают взрослые или они тебя хорошо понимают"]
[33,"Ты спокойно переходишь улицу, где большое движение транспорта или ты немного волнуешься"]
[34,"С тобой случаются большие неприятности или мелкие, незначительные"]
[35,"Если ты знаешь вопрос, ты сразу же поднимаешь руку или ждешь, когда тебя вызовут, не поднимая руки"]
[36," Когда в класс приходит новичок, ты с ним знакомишься так же быстро, как и остальные ребята или тебе надо больше времени"]
[37,"Охотнее ты стал бы водителем какого-нибудь транспорта (автобуса, троллейбуса, такси) или врачом"]
[38,"Ты часто огорчаешься, когда что-то не сбывается или редко"]
[39,"Когда кто-то из детей просит помочь им на контрольной, ты говоришь, чтобы он сам все решал или помогаешь, если не видит учитель"]
[40,"В твоем присутствии взрослые разговаривают между собой или они частенько слушают тебя"]
[41,"Если ты слышишь грустную историю, слезу могут навернуться на твои глаза или этого не бывает"]
[42,"Большинство твоих планов тебе удается осуществить или порой получается не так, как ты задумал"]
[43,"Когда мама зовет тебя домой, ты продолжаешь играть еще немного или идешь сразу же"]
[44,"Можешь ли ты свободно встать в классе и что-то рассказать. или ты робеешь, смущаешься"]
[45,"Понравилось бы тебе оставаться с маленькими детьми или тебе не понравилось бы оставаться с ними"]
[46,"Бывает так, что тебе одиноко и грустно или такого с тобой не бывает"]
[47,"Уроки дома ты делаешь в разное время дня или в одно и то же время дня"]
[48,"Хорошо ли тебе живется или не совсем хорошо"]
[49,"С большим удовольствием ты отправился бы за город, полюбоваться красивой природой или на выставку современных машин"]
[50,"Если тебе делают замечания, ругают, ты сохраняешь спокойствие и хорошее настроение или ты сильно расстраиваешься"]
[51,"Скорее тебе понравилось бы работать на кондитерской фабрике или быть учителем"]
[52,"Когда ребята в классе шумят, ты всегда сидишь тихо или ты шумишь вместе с ними"]
[53,"Если тебя толкают в автобусе, ты считаешь, что ничего особенного не произошло или тебя это сердит"]
[54,"Случалось тебе делать что-то такое, чего не следовало делать или такого не случалось с тобой"]
[55,"Ты предпочитаешь друзей, которые любят побаловаться, побегать, пошалить или тебе нравятся более серьезные"]
[56,"Ты испытываешь беспокойство, раздражение, когда приходится сидеть тихо и ждать, пока что-то начнется или тебе не доставляет никакого труда долгое ожидание"]
[57,"Охотнее ты сейчас бы ходил в школу или поехал путешествовать в автомобиле"]
[58,"Бывает иногда, что ты злишься на всех или ты всегда доволен все"]
[59,"Какой учитель тебе понравился бы больше: мягкий, снисходительный или строгий"]
[60,"Дома ты ешь все, что тебе предлагают или ты протестуешь, когда дают пищу, которую ты не любишь"]
[61,"К тебе хорошо относятся почти все или только некоторые люди"]
[62,"Когда ты утром просыпаешься, ты сначала сонный и вялый или тебе сразу хочется повеселиться"]
[63,"Ты заканчиваешь свою работу быстрее, чем другие или тебе надо немного больше времени"]
[64,"Бываешь ли ты иногда неуверен в себе или ты уверен в себе"]
[65,"Ты всегда радуешься, когда видишь своих школьных друзей или иногда тебе не хочется никого видеть"]
[66,"Говорит ли тебе мама, что ты медлителен или ты делаешь все быстро"]
[67,"Другим детям нравится то, что ты предлагаешь или им не всегда это нравится"]
[68,"В школе ты выполняешь все точно так, как требуют или твои одноклассники выполняют требования учителя более точно"]
[69,"Думаешь ли ты, что дети стараются перехитрить тебя или они относятся к тебе по-дружески"]
[70,"Ты делаешь все всегда хорошо или бывают дни, когда у тебя ничего не получается"]
[71,"Больше всего общего с «ЛЬДОМ», «ПАРОМ», «СНЕГОМ» имеют «ВОДА» или «БУРЯ» или «ЗИМА»"]
[72,"Ты сидишь во время урока спокойно или любишь повертеться"]
[73,"Ты возражаешь иногда своей маме или ты ее побаиваешься"]
[74,"Тебе больше нравится кататься на лыжах в парке, в лесу или кататься на лыжах с высоких гор"]
[75,"«ХОДИТЬ» так относится к слову «БЕГАТЬ», как «МЕДЛЕННО» к слову «ВЕРХОМ» или «ПОЛЗКОМ» или «БЫСТРО»"]
[76,"Ты считаешь» что ты всегда вежлив или бываешь надоедливым"]
[77,"Говорят ли, что с тобой трудно договориться (ты любишь настаивать на своем) или с тобой легко иметь дело"]
[78,"Менялся ли ты с кем-нибудь из ребят своими вещами (карандашом, линейкой, ручкой) или ты этого никогда не делал"]
[79,"Дан цифровой ряд: 7, 5, 3 ... Какая следующая цифра в этом ряду? 2 или 1 или 9"]
[80,"Хочется ли тебе быть иногда непослушным или у тебя никогда нет такого желания"]
[81,"Твоя мама делает все лучше, чем ты или часто твое предложение бывает лучше"]
[82,"Если бы ты был диким животным, ты охотнее стал быстрой лошадью или львом"]
[83,"Дана группа слов «НЕКОТОРЫЕ», «ВСЕ», «ЧАСТО», «НИКТО». Одно слово не подходит к остальным. Какое? «ЧАСТО» или «НИКТО» или «ВСЕ»"]
[84,"Когда тебе сообщают приятную новость, ты радуешься спокойно или тебе от радости хочется прыгать"]
[85,"Если кто-то к тебе относится не очень хорошо, ты прощаешь ему это или ты относишься к нему так же"]
[86,"Что тебе больше понравилось бы в бассейне: плавать или нырять с вышки"]
[87,"Вова моложе Пети, Сережа моложе Вовы. Кто самый старший? СЕРЕЖА или ВОВА или ПЕТЯ"]
[88,"Учитель иногда говорит, что ты недостаточно внимателен и допускаешь много помарок в тетради или он этого почти никогда не говорит"]
[89,"В спорах ты во что бы то ни стало стремишься или спокойно можешь уступить доказать, что ты хочешь"]
[90,"Ты лучше послушал бы историю 0 войне или о жизни животных"]
[91,"Ты всегда помогаешь новым ученикам, которые пришли к вам в класс или обычно это делают другие"]
[92,"Ты долго помнишь о своих неприятностях или ты быстро 0 них забываешь"]
[93,"В игре ты с большим удовольствием изображал бы пилота сверхзвукового самолета или известного писателя"]
[94,"Если мама тебя отругала, ты становишься грустным или настроение у тебя почти не портится"]
[95,"Ты всегда собираешь свой портфель с вечера или бывает, что делаешь это утром"]
[96,"Хвалит ли тебя учитель или он о тебе мало говорит"]
[97,"Можешь ли ты прикоснуться к пауку или паук тебе неприятен"]
[98,"Часто ли ты обижаешься или это случается очень редко"]
[99,"Когда родители говорят, что тебе пора спать, ты сразу же идешь или еще немного продолжаешь заниматься своим делом"]
[100,"Ты смущаешься, когда приходится разговаривать с незнакомым человеком или ты совсем не смущаешься"]
[101,"Ты скорее стал бы художником или охотником"]
[102,"У тебя все удачно выходит или бывают неудачи"]
[103,"Если ты не понял условие задачи, ты обращаешься к товарищу или к учителю"]
[104,"Можешь ли ты рассказывать смешные истории так, чтобы все смеялись или ты находишь, что это не очень легко делать"]
[105,"После урока тебе хочется некоторое время побыть около учителя или тебе хочется сразу же идти гулять в коридор"]
[106,"Иногда ты сидишь без дела и чувствуешь себя плохо или такого с тобой не бывает"]
[107,"По пути из школы ты останавливаешься поиграть или после школы ты идешь сразу домой"]
[108,"Всегда ли твои родители выслушивают тебя или они часто сильно заняты"]
[109,"Когда ты не можешь выйти из дома, тебе грустно тебе это безразлично"]
[110,"У тебя мало затруднений или много"]
[111,"В свободное время ты лучше пошел бы в кино или сажать деревья во дворе"]
[112,"Ты охотнее расскажешь маме 0 своих школьных делах или о прогулке, экскурсии"]
[113,"Если друзья берут твои вещи без спроса, ты считаешь, что в этом нет ничего особенного или ты сердишься на них"]
[114,"При неожиданном звуке тебе случалось вздрогнуть или ты просто оглядываешься"]
[115,"Тебе больше нравится, когда вы с ребятами рассказываете что-то друг другу или тебе больше нравится играть с ними"]
[116,"Повышаешь ли ты голос в разговоре, когда сильно взволнован или ты всегда разговариваешь спокойно"]
[117,"Охотнее ты пошел бы на урок или посмотрел бы встречу по футболу"]
[118,"Если ты слушаешь радио или смотришь телевизор, мешают тебе посторонние разговоры или ты их не замечаешь"]
[119,"Бывает ли тебе трудно в школе или тебе легко в школе"]
[120,"Если тебя дома чем-то разозлили, ты спокойно выходишь из комнаты или выходя из комнаты, ты можешь хлопнуть дверью"]

{"sheet":"Обработка результатов","index":1,"n_rows":60,"n_cols":27,"rows_kept":60,"cut":false,"hidden":true,"merged":[[0,25,0,26],[0,3,0,4],[0,5,0,6],[0,7,0,8],[0,9,0,10],[0,11,0,12],[0,13,0,14],[0,15,0,16],[0,17,0,18],[0,19,0,20],[0,21,0,22],[0,23,0,24],[6,25,6,26],[6,3,6,4],[6,5,6,6],[6,7,6,8],[6,9,6,10],[6,11,6,12],[6,13,6,14],[6,15,6,16],[6,17,6,18],[6,19,6,20],[6,21,6,22],[6,23,6,24]]}
[{"$f":"Опросник!U10","v":0},{"$f":"Опросник!U70","v":0},null,"A",null,"B",null,"C",null,"D",null,"E",null,"F",null,"G",null,"H",null,"I",null,"O",null,"Q3",null,"Q4"]
[{"$f":"Опросник!U11","v":0},{"$f":"Опросник!U71","v":0},null,{"$f":"IF(A1=1,1,0)","v":0},{"$f":"IF(A60=1,1,0)","v":0},{"$f":"IF(A11=1,1,0)","v":0},{"$f":"IF(B10=1,1,0)","v":0},{"$f":"IF(A3=1,1,0)","v":0},{"$f":"IF(B2=1,1,0)","v":0},{"$f":"IF(A12=2,1,0)","v":0},{"$f":"IF(B11=2,1,0)","v":0},{"$f":"IF(A13=1,1,0)","v":0},{"$f":"IF(B12=1,1,0)","v":0},{"$f":"IF(A14=2,1,0)","v":0},{"$f":"IF(B13=2,1,0)","v":0},{"$f":"IF(A31=1,1,0)","v":0},{"$f":"IF(B30=1,1,0)","v":0},{"$f":"IF(A32=2,1,0)","v":0},{"$f":"IF(B31=2,1,0)","v":0},{"$f":"IF(A33=2,1,0)","v":0},{"$f":"IF(B32=2,1,0)","v":0},{"$f":"IF(A34=1,1,0)","v":0},{"$f":"IF(B33=1,1,0)","v":0},{"$f":"IF(A51=2,1,0)","v":0},{"$f":"IF(B50=2,1,0)","v":0},{"$f":"IF(A53=2,1,0)","v":0},{"$f":"IF(B53=2,1,0)","v":0}]
[{"$f":"Опросник!U12","v":0},{"$f":"Опросник!U72","v":0},null,{"$f":"IF(A2=2,1,0)","v":0},{"$f":"IF(B1=2,1,0)","v":0},{"$f":"IF(A15=3,1,0)","v":0},{"$f":"IF(B14=3,1,0)","v":0},{"$f":"IF(A4=2,1,0)","v":0},{"$f":"IF(B3=2,1,0)","v":0},{"$f":"IF(A16=2,1,0)","v":0},{"$f":"IF(B15=2,1,0)","v":0},{"$f":"IF(A17=1,1,0)","v":0},{"$f":"IF(B16=1,1,0)","v":0},{"$f":"IF(A18=1,1,0)","v":0},{"$f":"IF(B17=1,1,0)","v":0},{"$f":"IF(A35=1,1,0)","v":0},{"$f":"IF(B34=1,1,0)","v":0},{"$f":"IF(A36=1,1,0)","v":0},{"$f":"IF(B35=1,1,0)","v":0},{"$f":"IF(A37=2,1,0)","v":0},{"$f":"IF(B36=2,1,0)","v":0},{"$f":"IF(A38=1,1,0)","v":0},{"$f":"IF(B37=1,1,0)","v":0},{"$f":"IF(A52=2,1,0)","v":0},{"$f":"IF(B51=2,1,0)","v":0},{"$f":"IF(A54=1,1,0)","v":0},{"$f":"IF(B54=1,1,0)","v":0}]
[{"$f":"Опросник!U13","v":0},{"$f":"Опросник!U73","v":0},null,{"$f":"IF(A5=1,1,0)","v":0},{"$f":"IF(B4=1,1,0)","v":0},{"$f":"IF(A19=2,1,0)","v":0},{"$f":"IF(B18=2,1,0)","v":0},{"$f":"IF(A6=2,1,0)","v":0},{"$f":"IF(B5=2,1,0)","v":0},{"$f":"IF(A20=1,1,0)","v":0},{"$f":"IF(B19=1,1,0)","v":0},{"$f":"IF(A21=2,1,0)","v":0},{"$f":"IF(B20=2,1,0)","v":0},{"$f":"IF(A22=2,1,0)","v":0},{"$f":"IF(B21=2,1,0)","v":0},{"$f":"IF(A39=1,1,0)","v":0},{"$f":"IF(B38=1,1,0)","v":0},{"$f":"IF(A40=2,1,0)","v":0},{"$f":"IF(B39=2,1,0)","v":0},{"$f":"IF(A41=1,1,0)","v":0},{"$f":"IF(B40=1,1,0)","v":0},{"$f":"IF(A42=2,1,0)","v":0},{"$f":"IF(B41=2,1,0)","v":0},{"$f":"IF(A55=2,1,0)","v":0},{"$f":"IF(B54=2,1,0)","v":0},{"$f":"IF(A56=1,1,0)","v":0},{"$f":"IF(B56=1,1,0)","v":0}]
[{"$f":"Опросник!U14","v":0},{"$f":"Опросник!U74","v":0},null,{"$f":"IF(A7=1,1,0)","v":0},{"$f":"IF(B6=1,1,0)","v":0},{"$f":"IF(A23=1,1,0)","v":0},{"$f":"IF(B22=1,1,0)","v":0},{"$f":"IF(A8=1,1,0)","v":0},{"$f":"IF(B7=1,1,0)","v":0},{"$f":"IF(A24=2,1,0)","v":0},{"$f":"IF(B23=2,1,0)","v":0},{"$f":"IF(A25=2,1,0)","v":0},{"$f":"IF(B24=2,1,0)","v":0},{"$f":"IF(A26=2,1,0)","v":0},{"$f":"IF(B25=2,1,0)","v":0},{"$f":"IF(A43=1,1,0)","v":0},{"$f":"IF(B42=1,1,0)","v":0},{"$f":"IF(A44=1,1,0)","v":0},{"$f":"IF(B43=1,1,0)","v":0},{"$f":"IF(A45=1,1,0)","v":0},{"$f":"IF(B44=1,1,0)","v":0},{"$f":"IF(A46=1,1,0)","v":0},{"$f":"IF(B45=1,1,0)","v":0},{"$f":"IF(A57=1,1,0)","v":0},{"$f":"IF(B56=1,1,0)","v":0},{"$f":"IF(A58=1,1,0)","v":0},{"$f":"IF(B58=1,1,0)","v":0}]
[{"$f":"Опросник!U70","v":0},{"$f":"Опросник!R130","v":0},null,{"$f":"IF(A9=2,1,0)","v":0},{"$f":"IF(B8=2,1,0)","v":0},{"$f":"IF(A27=1,1,0)","v":0},{"$f":"IF(B26=1,1,0)","v":0},{"$f":"IF(A10=1,1,0)","v":0},{"$f":"IF(B9=1,1,0)","v":0},{"$f":"IF(A28=1,1,0)","v":0},{"$f":"IF(B27=1,1,0)","v":0},{"$f":"IF(A29=1,1,0)","v":0},{"$f":"IF(B28=1,1,0)","v":0},{"$f":"IF(A30=1,1,0)","v":0},{"$f":"IF(B29=1,1,0)","v":0},{"$f":"IF(A47=2,1,0)","v":0},{"$f":"IF(B46=2,1,0)","v":0},{"$f":"IF(A48=1,1,0)","v":0},{"$f":"IF(B47=1,1,0)","v":0},{"$f":"IF(A49=1,1,0)","v":0},{"$f":"IF(B48=1,1,0)","v":0},{"$f":"IF(A50=2,1,0)","v":0},{"$f":"IF(B49=2,1,0)","v":0},{"$f":"IF(A59=2,1,0)","v":0},{"$f":"IF(B58=2,1,0)","v":0},{"$f":"IF(A60=2,1,0)","v":0},{"$f":"IF(B60=2,1,0)","v":0}]
[{"$f":"Опросник!U71","v":0},{"$f":"Опросник!R131","v":0},null,{"$f":"SUM(D2:E6)","v":0},null,{"$f":"SUM(F2:G6)","v":0},null,{"$f":"SUM(H2:I6)","v":0},null,{"$f":"SUM(J2:K6)","v":0},null,{"$f":"SUM(L2:M6)","v":0},null,{"$f":"SUM(N2:O6)","v":0},null,{"$f":"SUM(P2:Q6)","v":0},null,{"$f":"SUM(R2:S6)","v":0},null,{"$f":"SUM(T2:U6)","v":0},null,{"$f":"SUM(V2:W6)","v":0},null,{"$f":"SUM(X2:Y6)","v":0},null,{"$f":"SUM(Z2:AA6)","v":0}]
[{"$f":"Опросник!U72","v":0},{"$f":"Опросник!R132","v":0}]
[{"$f":"Опросник!U73","v":0},{"$f":"Опросник!R133","v":0}]
[{"$f":"Опросник!U74","v":0},{"$f":"Опросник!R134","v":0}]
[{"$f":"Опросник!U20","v":0},{"$f":"Опросник!U80","v":0}]
[{"$f":"Опросник!U21","v":0},{"$f":"Опросник!U81","v":0}]
[{"$f":"Опросник!U22","v":0},{"$f":"Опросник!U82","v":0}]
[{"$f":"Опросник!U23","v":0},{"$f":"Опросник!U83","v":0}]
[{"$f":"Опросник!U24","v":0},{"$f":"Опросник!U84","v":0}]
[{"$f":"Опросник!U80","v":0},{"$f":"Опросник!R140","v":0}]
[{"$f":"Опросник!U81","v":0},{"$f":"Опросник!R141","v":0}]
[{"$f":"Опросник!U82","v":0},{"$f":"Опросник!R142","v":0}]
[{"$f":"Опросник!U83","v":0},{"$f":"Опросник!R143","v":0}]
[{"$f":"Опросник!U84","v":0},{"$f":"Опросник!R144","v":0}]
[{"$f":"Опросник!U30","v":0},{"$f":"Опросник!U90","v":0}]
[{"$f":"Опросник!U31","v":0},{"$f":"Опросник!U91","v":0}]
[{"$f":"Опросник!U32","v":0},{"$f":"Опросник!U92","v":0}]
[{"$f":"Опросник!U33","v":0},{"$f":"Опросник!U93","v":0}]
[{"$f":"Опросник!U34","v":0},{"$f":"Опросник!U94","v":0}]
[{"$f":"Опросник!U90","v":0},{"$f":"Опросник!R150","v":0}]
[{"$f":"Опросник!U91","v":0},{"$f":"Опросник!R151","v":0}]
[{"$f":"Опросник!U92","v":0},{"$f":"Опросник!R152","v":0}]
[{"$f":"Опросник!U93","v":0},{"$f":"Опросник!R153","v":0}]
[{"$f":"Опросник!U94","v":0},{"$f":"Опросник!R154","v":0}]
[{"$f":"Опросник!U40","v":0},{"$f":"Опросник!U100","v":0}]
[{"$f":"Опросник!U41","v":0},{"$f":"Опросник!U101","v":0}]
[{"$f":"Опросник!U42","v":0},{"$f":"Опросник!U102","v":0}]
[{"$f":"Опросник!U43","v":0},{"$f":"Опросник!U103","v":0}]
[{"$f":"Опросник!U44","v":0},{"$f":"Опросник!U104","v":0}]
[{"$f":"Опросник!U100","v":0},{"$f":"Опросник!R160","v":0}]
[{"$f":"Опросник!U101","v":0},{"$f":"Опросник!R161","v":0}]
[{"$f":"Опросник!U102","v":0},{"$f":"Опросник!R162","v":0}]
[{"$f":"Опросник!U103","v":0},{"$f":"Опросник!R163","v":0}]
[{"$f":"Опросник!U104","v":0},{"$f":"Опросник!R164","v":0}]
[{"$f":"Опросник!U50","v":0},{"$f":"Опросник!U110","v":0}]
[{"$f":"Опросник!U51","v":0},{"$f":"Опросник!U111","v":0}]
[{"$f":"Опросник!U52","v":0},{"$f":"Опросник!U112","v":0}]
[{"$f":"Опросник!U53","v":0},{"$f":"Опросник!U113","v":0}]
[{"$f":"Опросник!U54","v":0},{"$f":"Опросник!U114","v":0}]
[{"$f":"Опросник!U110","v":0},{"$f":"Опросник!R170","v":0}]
[{"$f":"Опросник!U111","v":0},{"$f":"Опросник!R171","v":0}]
[{"$f":"Опросник!U112","v":0},{"$f":"Опросник!R172","v":0}]
[{"$f":"Опросник!U113","v":0},{"$f":"Опросник!R173","v":0}]
[{"$f":"Опросник!U114","v":0},{"$f":"Опросник!R174","v":0}]
[{"$f":"Опросник!U60","v":0},{"$f":"Опросник!U120","v":0}]
[{"$f":"Опросник!U61","v":0},{"$f":"Опросник!U121","v":0}]
[{"$f":"Опросник!U62","v":0},{"$f":"Опросник!U122","v":0}]
[{"$f":"Опросник!U63","v":0},{"$f":"Опросник!U123","v":0}]
[{"$f":"Опросник!U64","v":0},{"$f":"Опросник!U124","v":0}]
[{"$f":"Опросник!U120","v":0},{"$f":"Опросник!R180","v":0}]
[{"$f":"Опросник!U121","v":0},{"$f":"Опросник!R181","v":0}]
[{"$f":"Опросник!U122","v":0},{"$f":"Опросник!R182","v":0}]
[{"$f":"Опросник!U123","v":0},{"$f":"Опросник!R183","v":0}]
[{"$f":"Опросник!U124","v":0},{"$f":"Опросник!R184","v":0}]

{"sheet":"Печать","index":2,"n_rows":38,"n_cols":8,"rows_kept":38,"cut":false,"hidden":false,"merged":[[37,4,37,8],[6,4,6,5],[5,7,5,8],[6,7,6,8],[0,0,0,8],[2,7,2,8],[3,7,3,8],[2,1,2,5],[3,1,3,2],[3,4,3,5],[5,4,5,5],[7,7,7,8],[8,7,8,8],[9,7,9,8],[10,7,10,8],[11,7,11,8],[8,4,8,5],[9,4,9,5],[10,4,10,5],[11,4,11,5],[7,4,7,5]]}
["Карта интересов для младших школьников"]
[]
["ФИО",{"$f":"PROPER(Опросник!D2)","v":""},null,null,null,null,"Класс",{"$f":"Опросник!Q2","v":0}]
["Возраст",{"$f":"CONCATENATE(Опросник!D3, \" лет\")","v":" лет"},null,"Пол",{"$f":"Опросник!Q3","v":0},null,"Дата",{"$f":"TODAY()","v":"2018-04-19"}]
[]
["Фактор","Балл","Значение",null,"Фактор",null,"Балл","Значение"]
["A",{"$f":"'Обработка результатов'!D7","v":0},{"$f":"IF(AND(B7>=0,B7<=3),\"Низкий\",IF(AND(B7>=4,B7<=7),\"Средний\",IF(AND(B7>=8,B7<=10),\"Высокий\")))","v":"Низкий"},null,"G",null,{"$f":"'Обработка результатов'!P7","v":0},{"$f":"IF(AND(G7>=0,G7<=3),\"Низкий\",IF(AND(G7>=4,G7<=7),\"Средний\",IF(AND(G7>=8,G7<=10),\"Высокий\")))","v":"Низкий"}]
["B",{"$f":"'Обработка результатов'!F7","v":0},{"$f":"IF(AND(B8>=0,B8<=3),\"Низкий\",IF(AND(B8>=4,B8<=7),\"Средний\",IF(AND(B8>=8,B8<=10),\"Высокий\")))","v":"Низкий"},null,"H",null,{"$f":"'Обработка результатов'!R7","v":0},{"$f":"IF(AND(G8>=0,G8<=3),\"Низкий\",IF(AND(G8>=4,G8<=7),\"Средний\",IF(AND(G8>=8,G8<=10),\"Высокий\")))","v":"Низкий"}]
["C",{"$f":"'Обработка результатов'!H7","v":0},"Низкий",null,"I",null,{"$f":"'Обработка результатов'!T7","v":0},"Низкий"]
["D",{"$f":"'Обработка результатов'!J7","v":0},"Низкий",null,"O",null,{"$f":"'Обработка результатов'!V7","v":0},"Низкий"]
["E",{"$f":"'Обработка результатов'!L7","v":0},"Низкий",null,"Q3",null,{"$f":"'Обработка результатов'!X7","v":0},"Низкий"]
["F",{"$f":"'Обработка результатов'!N7","v":0},"Низкий",null,"Q4",null,{"$f":"'Обработка результатов'!Z7","v":0},"Низкий"]
[]
[]
[]
[]
[]
[]
[]
[]
[]
[]
[]
[]
[]
[]
[]
[]
[]
[]
[]
[]
[]
[]
[]
[]
[]
[null,null,null,null,"http://eschool.by/psy/"]